[Event "Titled Tuesday Blitz October 25 Late 2022"]
[White "Kamsky, Gata"]
[Black "Besedes, Danilo"]
[WhiteFideId "2000024"]
[BlackFideId "946796"]
[WhiteElo "2666"]
[BlackElo "2352"]
[Result "1-0"]
[Round "02"]
[TimeControl "180+1"]
[Date "2022.10.26"]
[WhiteClock "0:00:54"]
[BlackClock "0:00:20"]

1. e4 {[%clk 0:03:00]}  c6 {[%clk 0:02:55]} 2. Nf3 {[%clk 0:02:57]}  d6 {[%clk 0:02:55]} 3. Bc4 {[%clk 0:02:56]}  Qc7 {[%clk 0:02:53]} 4. d3 {[%clk 0:02:55]}  e5 {[%clk 0:02:47]} 5. Ng5 {[%clk 0:02:49]}  Nh6 {[%clk 0:02:47]} 6. Nc3 {[%clk 0:02:47]}  Be7 {[%clk 0:02:41]} 7. Qh5 {[%clk 0:02:45]}  O-O {[%clk 0:02:21]} 8. h3 {[%clk 0:02:45]}  b5 {[%clk 0:02:16]} 9. Bb3 {[%clk 0:02:44]}  Na6 {[%clk 0:02:16]} 10. O-O {[%clk 0:02:29]}  Nc5 {[%clk 0:02:15]} 11. f4 {[%clk 0:02:29]}  Nxb3 {[%clk 0:02:09]} 12. axb3 {[%clk 0:02:28]}  f6 {[%clk 0:02:08]} 13. Nf3 {[%clk 0:02:24]}  Nf7 {[%clk 0:02:06]} 14. f5 {[%clk 0:02:22]}  d5 {[%clk 0:02:02]} 15. g4 {[%clk 0:02:19]}  h6 {[%clk 0:01:59]} 16. h4 {[%clk 0:02:14]}  Bd7 {[%clk 0:01:58]} 17. g5 {[%clk 0:02:13]}  fxg5 {[%clk 0:01:53]} 18. hxg5 {[%clk 0:02:13]}  hxg5 {[%clk 0:01:40]} 19. Bxg5 {[%clk 0:02:09]}  Nxg5 {[%clk 0:01:04]} 20. Nxg5 {[%clk 0:02:08]}  Bxg5 {[%clk 0:01:03]} 21. Qxg5 {[%clk 0:02:08]}  Qd8 {[%clk 0:00:56]} 22. Qxd8 {[%clk 0:02:04]}  Rfxd8 {[%clk 0:00:54]} 23. Ra6 {[%clk 0:01:50]}  b4 {[%clk 0:00:51]} 24. Na4 {[%clk 0:01:48]}  dxe4 {[%clk 0:00:50]} 25. dxe4 {[%clk 0:01:47]}  Be8 {[%clk 0:00:51]} 26. Nc5 {[%clk 0:01:44]}  Rd2 {[%clk 0:00:49]} 27. Rf2 {[%clk 0:01:44]}  Rad8 {[%clk 0:00:45]} 28. Nd3 {[%clk 0:01:39]}  Rd1+ {[%clk 0:00:35]} 29. Kg2 {[%clk 0:01:39]}  Rd4 {[%clk 0:00:35]} 30. Nc5 {[%clk 0:01:27]}  R4d2 {[%clk 0:00:29]} 31. Rxa7 {[%clk 0:01:22]}  Rxf2+ {[%clk 0:00:29]} 32. Kxf2 {[%clk 0:01:22]}  Rd2+ {[%clk 0:00:29]} 33. Ke3 {[%clk 0:01:22]}  Rxc2 {[%clk 0:00:30]} 34. Ne6 {[%clk 0:01:22]}  Rxb2 {[%clk 0:00:23]} 35. Rxg7+ {[%clk 0:01:20]}  Kh8 {[%clk 0:00:23]} 36. Re7 {[%clk 0:01:14]}  Rxb3+ {[%clk 0:00:22]} 37. Kd2 {[%clk 0:01:13]}  Bh5 {[%clk 0:00:23]} 38. Rb7 {[%clk 0:01:00]}  Rb2+ {[%clk 0:00:20]} 39. Kc1 {[%clk 0:00:59]}  Rb3 {[%clk 0:00:20]} 40. f6 {[%clk 0:00:57]}  Rc3+ {[%clk 0:00:20]} 41. Kd2 {[%clk 0:00:56]}  c5 {[%clk 0:00:20]} 42. Ng5 {[%clk 0:00:54]} 1-0


[Site "https://www.chess.com"]

[Event "Titled Tuesday Blitz October 25 Late 2022"]
[White "Kirillov, Dmitry"]
[Black "Srbis, Jurica"]
[WhiteFideId "34180572"]
[BlackFideId "14515555"]
[WhiteElo "2095"]
[BlackElo "2481"]
[Result "0-1"]
[Round "02"]
[TimeControl "180+1"]
[Date "2022.10.26"]
[WhiteClock "0:00:01"]
[BlackClock "0:00:58"]

1. e4 {[%clk 0:03:00]}  e5 {[%clk 0:02:59]} 2. Nf3 {[%clk 0:03:00]}  Nc6 {[%clk 0:02:59]} 3. Bc4 {[%clk 0:03:00]}  Nf6 {[%clk 0:02:59]} 4. d3 {[%clk 0:03:00]}  Be7 {[%clk 0:02:59]} 5. c3 {[%clk 0:02:54]}  O-O {[%clk 0:03:00]} 6. O-O {[%clk 0:02:53]}  d6 {[%clk 0:03:00]} 7. h3 {[%clk 0:02:53]}  h6 {[%clk 0:03:00]} 8. Nbd2 {[%clk 0:02:49]}  Nh7 {[%clk 0:03:01]} 9. Re1 {[%clk 0:02:19]}  Kh8 {[%clk 0:03:01]} 10. b4 {[%clk 0:02:14]}  f5 {[%clk 0:02:59]} 11. exf5 {[%clk 0:02:02]}  Bxf5 {[%clk 0:02:59]} 12. Nf1 {[%clk 0:02:02]}  a6 {[%clk 0:02:36]} 13. Ng3 {[%clk 0:01:46]}  Bg6 {[%clk 0:02:34]} 14. Bb3 {[%clk 0:01:29]}  Ng5 {[%clk 0:02:19]} 15. Nxg5 {[%clk 0:01:17]}  Bxg5 {[%clk 0:02:20]} 16. Ne4 {[%clk 0:01:15]}  Bxc1 {[%clk 0:02:18]} 17. Rxc1 {[%clk 0:01:14]}  Rf4 {[%clk 0:01:46]} 18. g3 {[%clk 0:00:55]}  Rf8 {[%clk 0:01:44]} 19. Qe2 {[%clk 0:00:21]}  Qd7 {[%clk 0:01:38]} 20. Kg2 {[%clk 0:00:21]}  Bf5 {[%clk 0:01:38]} 21. Rh1 {[%clk 0:00:19]}  Ne7 {[%clk 0:01:34]} 22. Rcf1 {[%clk 0:00:17]}  b6 {[%clk 0:01:29]} 23. f4 {[%clk 0:00:16]}  Ng6 {[%clk 0:01:26]} 24. fxe5 {[%clk 0:00:10]}  Nxe5 {[%clk 0:01:27]} 25. g4 {[%clk 0:00:09]}  Bh7 {[%clk 0:01:24]} 26. d4 {[%clk 0:00:08]}  Ng6 {[%clk 0:01:23]} 27. Qd2 {[%clk 0:00:05]}  Nh4+ {[%clk 0:01:20]} 28. Kg3 {[%clk 0:00:05]}  Bxe4 {[%clk 0:01:20]} 29. Kxh4 {[%clk 0:00:04]}  Bxh1 {[%clk 0:01:20]} 30. Rxh1 {[%clk 0:00:05]}  Rf3 {[%clk 0:01:16]} 31. g5 {[%clk 0:00:04]}  Qf5 {[%clk 0:01:04]} 32. gxh6 {[%clk 0:00:02]}  Qe4+ {[%clk 0:01:04]} 33. Kg5 {[%clk 0:00:02]}  Rf5+ {[%clk 0:01:01]} 34. Kg6 {[%clk 0:00:01]}  Rf2+ {[%clk 0:00:58]} 0-1


[Site "https://www.chess.com"]

[Event "Titled Tuesday Blitz October 25 Late 2022"]
[White "Korobov, Anton"]
[Black "Fernandez De La Vara, Arnaldo"]
[WhiteFideId "14105730"]
[BlackFideId "3518388"]
[WhiteElo "2635"]
[BlackElo "2387"]
[Result "1-0"]
[Round "02"]
[TimeControl "180+1"]
[Date "2022.10.26"]
[WhiteClock "0:00:34"]
[BlackClock "0:00:07"]

1. d4 {[%clk 0:03:00]}  c5 {[%clk 0:03:00]} 2. d5 {[%clk 0:03:00]}  Nf6 {[%clk 0:03:01]} 3. Nc3 {[%clk 0:03:00]}  a6 {[%clk 0:03:02]} 4. e4 {[%clk 0:02:59]}  d6 {[%clk 0:03:02]} 5. f4 {[%clk 0:02:56]}  b5 {[%clk 0:02:40]} 6. e5 {[%clk 0:02:49]}  b4 {[%clk 0:02:40]} 7. exf6 {[%clk 0:02:32]}  bxc3 {[%clk 0:02:41]} 8. bxc3 {[%clk 0:02:29]}  e6 {[%clk 0:02:40]} 9. dxe6 {[%clk 0:02:13]}  Bxe6 {[%clk 0:02:30]} 10. f5 {[%clk 0:02:10]}  Bxf5 {[%clk 0:01:59]} 11. Qd5 {[%clk 0:02:10]}  Qxf6 {[%clk 0:01:59]} 12. Qxa8 {[%clk 0:02:10]}  Qxc3+ {[%clk 0:01:58]} 13. Kf2 {[%clk 0:02:10]}  Qxa1 {[%clk 0:01:29]} 14. Qxb8+ {[%clk 0:02:09]}  Ke7 {[%clk 0:01:26]} 15. Nf3 {[%clk 0:02:07]}  Qxc1 {[%clk 0:01:17]} 16. Qc7+ {[%clk 0:01:50]}  Bd7 {[%clk 0:00:50]} 17. Bxa6 {[%clk 0:01:33]}  Qxh1 {[%clk 0:00:36]} 18. Bb5 {[%clk 0:01:32]}  Kf6 {[%clk 0:00:26]} 19. Qxd7 {[%clk 0:01:28]}  Be7 {[%clk 0:00:26]} 20. Nd2 {[%clk 0:00:53]}  d5 {[%clk 0:00:17]} 21. Qc6+ {[%clk 0:00:45]}  Kg5 {[%clk 0:00:16]} 22. Nf3+ {[%clk 0:00:44]}  Kh5 {[%clk 0:00:15]} 23. Be2 {[%clk 0:00:40]}  g6 {[%clk 0:00:11]} 24. Qc7 {[%clk 0:00:36]}  Re8 {[%clk 0:00:10]} 25. Qf4 {[%clk 0:00:34]}  g5 {[%clk 0:00:09]} 26. Qxf7+ {[%clk 0:00:33]}  Kh6 {[%clk 0:00:08]} 27. Qxe8 {[%clk 0:00:34]}  g4 {[%clk 0:00:06]} 28. Qxe7 {[%clk 0:00:33]}  gxf3 {[%clk 0:00:07]} 29. Qf6+ {[%clk 0:00:34]} 1-0


[Site "https://www.chess.com"]

[Event "Titled Tuesday Blitz October 25 Late 2022"]
[White "Lawson, Eric"]
[Black "Moaataz, Ayah"]
[WhiteFideId "2604116"]
[BlackFideId "10615873"]
[WhiteElo "2541"]
[BlackElo "1993"]
[Result "1-0"]
[Round "02"]
[TimeControl "180+1"]
[Date "2022.10.26"]
[WhiteClock "0:00:51"]
[BlackClock "0:00:13"]

1. e4 {[%clk 0:02:57]}  c6 {[%clk 0:03:00]} 2. d4 {[%clk 0:02:57]}  d5 {[%clk 0:03:01]} 3. e5 {[%clk 0:02:57]}  Bf5 {[%clk 0:03:01]} 4. Nf3 {[%clk 0:02:58]}  e6 {[%clk 0:03:01]} 5. Be2 {[%clk 0:02:58]}  Nd7 {[%clk 0:03:00]} 6. O-O {[%clk 0:02:59]}  Ne7 {[%clk 0:03:00]} 7. c3 {[%clk 0:02:58]}  Bg6 {[%clk 0:03:01]} 8. Nbd2 {[%clk 0:02:54]}  Nf5 {[%clk 0:03:01]} 9. Nb3 {[%clk 0:02:53]}  Be7 {[%clk 0:03:02]} 10. a4 {[%clk 0:02:53]}  f6 {[%clk 0:03:02]} 11. Re1 {[%clk 0:02:47]}  fxe5 {[%clk 0:03:02]} 12. dxe5 {[%clk 0:02:45]}  O-O {[%clk 0:03:02]} 13. a5 {[%clk 0:02:45]}  Nh4 {[%clk 0:02:59]} 14. Nbd4 {[%clk 0:02:37]}  Nxf3+ {[%clk 0:02:45]} 15. Bxf3 {[%clk 0:02:36]}  Bf7 {[%clk 0:02:46]} 16. a6 {[%clk 0:02:36]}  Qc7 {[%clk 0:02:37]} 17. axb7 {[%clk 0:02:35]}  Qxb7 {[%clk 0:02:37]} 18. Bg4 {[%clk 0:02:33]}  Nc5 {[%clk 0:02:25]} 19. b4 {[%clk 0:02:28]}  Ne4 {[%clk 0:02:24]} 20. Rxe4 {[%clk 0:02:28]}  dxe4 {[%clk 0:02:23]} 21. Nxe6 {[%clk 0:02:28]}  Bxe6 {[%clk 0:02:07]} 22. Bxe6+ {[%clk 0:02:28]}  Kh8 {[%clk 0:02:08]} 23. Qe2 {[%clk 0:02:14]}  c5 {[%clk 0:02:03]} 24. b5 {[%clk 0:02:12]}  Rad8 {[%clk 0:01:58]} 25. c4 {[%clk 0:02:04]}  Rd4 {[%clk 0:01:43]} 26. Be3 {[%clk 0:02:00]}  Rfd8 {[%clk 0:01:38]} 27. g3 {[%clk 0:01:50]}  Qc7 {[%clk 0:01:11]} 28. Bxd4 {[%clk 0:01:48]}  Rxd4 {[%clk 0:01:12]} 29. Bd5 {[%clk 0:01:45]}  Qxe5 {[%clk 0:00:56]} 30. Rxa7 {[%clk 0:01:44]}  g6 {[%clk 0:00:56]} 31. b6 {[%clk 0:01:28]}  Bd6 {[%clk 0:00:48]} 32. Qg4 {[%clk 0:01:19]}  Qf5 {[%clk 0:00:24]} 33. Qxf5 {[%clk 0:00:53]}  gxf5 {[%clk 0:00:25]} 34. Rd7 {[%clk 0:00:49]}  Rd1+ {[%clk 0:00:20]} 35. Kg2 {[%clk 0:00:49]}  Be5 {[%clk 0:00:20]} 36. Re7 {[%clk 0:00:49]}  Bd6 {[%clk 0:00:19]} 37. Re6 {[%clk 0:00:50]}  Bf8 {[%clk 0:00:16]} 38. b7 {[%clk 0:00:49]}  Rb1 {[%clk 0:00:16]} 39. Re8 {[%clk 0:00:49]}  Kg7 {[%clk 0:00:15]} 40. b8=Q {[%clk 0:00:50]}  Rxb8 {[%clk 0:00:14]} 41. Rxb8 {[%clk 0:00:51]}  Bd6 {[%clk 0:00:15]} 42. Rd8 {[%clk 0:00:51]}  Be5 {[%clk 0:00:14]} 43. Rd7+ {[%clk 0:00:51]}  Kg6 {[%clk 0:00:14]} 44. f4 {[%clk 0:00:51]}  exf3+ {[%clk 0:00:14]} 45. Kxf3 {[%clk 0:00:51]}  Bd4 {[%clk 0:00:14]} 46. h4 {[%clk 0:00:51]}  h6 {[%clk 0:00:15]} 47. Rd6+ {[%clk 0:00:50]}  Kg7 {[%clk 0:00:15]} 48. Kf4 {[%clk 0:00:51]}  Bf2 {[%clk 0:00:15]} 49. h5 {[%clk 0:00:50]}  Kf8 {[%clk 0:00:13]} 50. Rxh6 {[%clk 0:00:49]}  Be1 {[%clk 0:00:12]} 51. Rg6 {[%clk 0:00:49]}  Ke7 {[%clk 0:00:10]} 52. Kxf5 {[%clk 0:00:50]}  Bd2 {[%clk 0:00:10]} 53. h6 {[%clk 0:00:50]}  Be3 {[%clk 0:00:10]} 54. h7 {[%clk 0:00:50]}  Bd4 {[%clk 0:00:11]} 55. Rg8 {[%clk 0:00:49]}  Kd7 {[%clk 0:00:10]} 56. g4 {[%clk 0:00:50]}  Bc3 {[%clk 0:00:10]} 57. g5 {[%clk 0:00:50]}  Bd4 {[%clk 0:00:11]} 58. g6 {[%clk 0:00:51]}  Bc3 {[%clk 0:00:12]} 59. g7 {[%clk 0:00:51]}  Bd4 {[%clk 0:00:13]} 60. h8=Q {[%clk 0:00:51]}  Bxg7 {[%clk 0:00:13]} 61. Rxg7+ {[%clk 0:00:51]} 1-0


[Site "https://www.chess.com"]

[Event "Titled Tuesday Blitz October 25 Late 2022"]
[White "Leschinsky, Gary"]
[Black "Arbunic Castro, Giovanna"]
[WhiteFideId "30951321"]
[BlackFideId "3400549"]
[WhiteElo "1855"]
[BlackElo "1882"]
[Result "1-0"]
[Round "02"]
[TimeControl "180+1"]
[Date "2022.10.26"]
[WhiteClock "0:00:32"]
[BlackClock "0:00:01"]

1. d4 {[%clk 0:02:50]}  Nf6 {[%clk 0:02:57]} 2. c4 {[%clk 0:02:50]}  g6 {[%clk 0:02:56]} 3. Nc3 {[%clk 0:02:50]}  Bg7 {[%clk 0:02:56]} 4. e4 {[%clk 0:02:50]}  d6 {[%clk 0:02:56]} 5. Nf3 {[%clk 0:02:50]}  O-O {[%clk 0:02:54]} 6. h3 {[%clk 0:02:51]}  Nbd7 {[%clk 0:02:52]} 7. Bd3 {[%clk 0:02:40]}  e5 {[%clk 0:02:49]} 8. d5 {[%clk 0:02:38]}  Nh5 {[%clk 0:02:42]} 9. g3 {[%clk 0:02:20]}  Nc5 {[%clk 0:02:33]} 10. Bc2 {[%clk 0:02:17]}  Bd7 {[%clk 0:02:32]} 11. Nh4 {[%clk 0:02:14]}  Qc8 {[%clk 0:02:25]} 12. b4 {[%clk 0:01:50]}  Na6 {[%clk 0:02:22]} 13. a3 {[%clk 0:01:50]}  Bxh3 {[%clk 0:02:20]} 14. Be3 {[%clk 0:01:50]}  Bd7 {[%clk 0:01:58]} 15. Ng2 {[%clk 0:01:39]}  Nf6 {[%clk 0:01:25]} 16. f3 {[%clk 0:01:34]}  Ne8 {[%clk 0:01:14]} 17. Qd2 {[%clk 0:01:29]}  f5 {[%clk 0:01:12]} 18. O-O-O {[%clk 0:01:27]}  c5 {[%clk 0:00:44]} 19. dxc6 {[%clk 0:01:18]}  bxc6 {[%clk 0:00:42]} 20. Bh6 {[%clk 0:01:00]}  Rf7 {[%clk 0:00:26]} 21. Bxg7 {[%clk 0:00:53]}  Rxg7 {[%clk 0:00:25]} 22. Ne3 {[%clk 0:00:49]}  f4 {[%clk 0:00:19]} 23. gxf4 {[%clk 0:00:47]}  exf4 {[%clk 0:00:17]} 24. Ng2 {[%clk 0:00:48]}  Rf7 {[%clk 0:00:13]} 25. Nxf4 {[%clk 0:00:47]}  Qd8 {[%clk 0:00:04]} 26. Rdg1 {[%clk 0:00:44]}  Qf6 {[%clk 0:00:02]} 27. Nfe2 {[%clk 0:00:37]}  c5 {[%clk 0:00:02]} 28. b5 {[%clk 0:00:33]}  Nb4 {[%clk 0:00:01]} 29. axb4 {[%clk 0:00:32]} 1-0


[Site "https://www.chess.com"]

[Event "Titled Tuesday Blitz October 25 Late 2022"]
[White "Levine, David"]
[Black "Petrovic, Aleksa"]
[WhiteFideId "2011611"]
[BlackFideId "967629"]
[WhiteElo "2219"]
[BlackElo "2242"]
[Result "1-0"]
[Round "02"]
[TimeControl "180+1"]
[Date "2022.10.26"]
[WhiteClock "0:01:01"]
[BlackClock "0:00:16"]

1. d4 {[%clk 0:03:00]}  Nf6 {[%clk 0:02:58]} 2. c4 {[%clk 0:03:00]}  e6 {[%clk 0:02:57]} 3. g3 {[%clk 0:03:00]}  d5 {[%clk 0:02:55]} 4. Bg2 {[%clk 0:03:00]}  Be7 {[%clk 0:02:55]} 5. Nf3 {[%clk 0:03:00]}  O-O {[%clk 0:02:54]} 6. O-O {[%clk 0:03:00]}  b6 {[%clk 0:02:54]} 7. cxd5 {[%clk 0:02:54]}  exd5 {[%clk 0:02:54]} 8. Ne5 {[%clk 0:02:52]}  Bb7 {[%clk 0:02:53]} 9. Qa4 {[%clk 0:02:51]}  c5 {[%clk 0:02:49]} 10. Nc3 {[%clk 0:02:44]}  Re8 {[%clk 0:02:46]} 11. Bf4 {[%clk 0:02:41]}  cxd4 {[%clk 0:02:44]} 12. Qxd4 {[%clk 0:02:36]}  Bc5 {[%clk 0:02:44]} 13. Qd2 {[%clk 0:02:34]}  g5 {[%clk 0:02:40]} 14. Nxf7 {[%clk 0:02:24]}  Kxf7 {[%clk 0:02:38]} 15. Bxg5 {[%clk 0:02:24]}  Nc6 {[%clk 0:02:26]} 16. Nxd5 {[%clk 0:02:17]}  Ne7 {[%clk 0:01:57]} 17. Bxf6 {[%clk 0:02:00]}  Nxd5 {[%clk 0:00:58]} 18. Bxd8 {[%clk 0:01:56]}  Raxd8 {[%clk 0:00:59]} 19. Qh6 {[%clk 0:01:53]}  Kg8 {[%clk 0:00:54]} 20. Rad1 {[%clk 0:01:43]}  Kh8 {[%clk 0:00:31]} 21. Bxd5 {[%clk 0:01:20]}  Rxd5 {[%clk 0:00:14]} 22. Rxd5 {[%clk 0:01:15]}  Bxd5 {[%clk 0:00:15]} 23. Qf6+ {[%clk 0:01:15]}  Kg8 {[%clk 0:00:15]} 24. Qg5+ {[%clk 0:01:14]}  Kf8 {[%clk 0:00:16]} 25. Qxd5 {[%clk 0:01:14]}  Rxe2 {[%clk 0:00:16]} 26. Qf3+ {[%clk 0:01:01]} 1-0


[Site "https://www.chess.com"]

[Event "Titled Tuesday Blitz October 25 Late 2022"]
[White "Lewicki, Miroslaw"]
[Black "Ibarra Jerez, Jose Carlos"]
[WhiteFideId "1113380"]
[BlackFideId "2226332"]
[WhiteElo "2236"]
[BlackElo "2627"]
[Result "0-1"]
[Round "02"]
[TimeControl "180+1"]
[Date "2022.10.26"]
[WhiteClock "0:00:05"]
[BlackClock "0:00:21"]

1. g3 {[%clk 0:03:00]}  Nf6 {[%clk 0:02:59]} 2. Bg2 {[%clk 0:03:00]}  g6 {[%clk 0:02:59]} 3. Nf3 {[%clk 0:03:01]}  Bg7 {[%clk 0:02:59]} 4. O-O {[%clk 0:03:01]}  O-O {[%clk 0:03:00]} 5. b3 {[%clk 0:02:59]}  d6 {[%clk 0:02:58]} 6. Bb2 {[%clk 0:02:59]}  e5 {[%clk 0:02:58]} 7. d4 {[%clk 0:02:57]}  e4 {[%clk 0:02:58]} 8. Nfd2 {[%clk 0:02:56]}  e3 {[%clk 0:02:51]} 9. fxe3 {[%clk 0:02:57]}  Ng4 {[%clk 0:02:50]} 10. Rf3 {[%clk 0:02:52]}  Re8 {[%clk 0:02:51]} 11. Nf1 {[%clk 0:02:51]}  c5 {[%clk 0:02:50]} 12. Nc3 {[%clk 0:02:44]}  Nc6 {[%clk 0:02:28]} 13. Nd5 {[%clk 0:02:25]}  Be6 {[%clk 0:02:22]} 14. Nf4 {[%clk 0:01:44]}  Bf5 {[%clk 0:02:22]} 15. h3 {[%clk 0:01:41]}  Nf6 {[%clk 0:02:19]} 16. g4 {[%clk 0:01:40]}  Be4 {[%clk 0:02:19]} 17. Rf2 {[%clk 0:01:40]}  Bxg2 {[%clk 0:02:19]} 18. Rxg2 {[%clk 0:01:39]}  Ne4 {[%clk 0:02:16]} 19. c3 {[%clk 0:01:32]}  Qg5 {[%clk 0:02:09]} 20. Qd3 {[%clk 0:01:25]}  Re7 {[%clk 0:01:59]} 21. Ng3 {[%clk 0:01:06]}  Rae8 {[%clk 0:01:53]} 22. Nxe4 {[%clk 0:01:07]}  Rxe4 {[%clk 0:01:54]} 23. Rg3 {[%clk 0:01:07]}  cxd4 {[%clk 0:01:53]} 24. cxd4 {[%clk 0:01:02]}  Nxd4 {[%clk 0:01:39]} 25. Rd1 {[%clk 0:00:47]}  Nf5 {[%clk 0:01:20]} 26. Bxg7 {[%clk 0:00:39]}  Nxg3 {[%clk 0:01:11]} 27. Bd4 {[%clk 0:00:21]}  Rxf4 {[%clk 0:00:42]} 28. exf4 {[%clk 0:00:22]}  Qxf4 {[%clk 0:00:42]} 29. Bf2 {[%clk 0:00:12]}  Nxe2+ {[%clk 0:00:36]} 30. Kf1 {[%clk 0:00:13]}  Qh2 {[%clk 0:00:33]} 31. Qf3 {[%clk 0:00:06]}  Nf4 {[%clk 0:00:32]} 32. Rxd6 {[%clk 0:00:06]}  Nxh3 {[%clk 0:00:28]} 33. Bd4 {[%clk 0:00:05]}  Qxd6 {[%clk 0:00:21]} 0-1


[Site "https://www.chess.com"]

[Event "Titled Tuesday Blitz October 25 Late 2022"]
[White "Lindholt, Malik"]
[Black "Mazurkiewicz, Michal"]
[WhiteFideId "1404490"]
[BlackFideId "1124943"]
[WhiteElo "1983"]
[BlackElo "2063"]
[Result "0-1"]
[Round "02"]
[TimeControl "180+1"]
[Date "2022.10.26"]
[WhiteClock "0:00:07"]
[BlackClock "0:00:19"]

1. e4 {[%clk 0:03:00]}  d6 {[%clk 0:02:58]} 2. d4 {[%clk 0:02:59]}  Nf6 {[%clk 0:02:58]} 3. Nc3 {[%clk 0:02:59]}  c6 {[%clk 0:02:59]} 4. f4 {[%clk 0:02:59]}  Qb6 {[%clk 0:02:59]} 5. Nf3 {[%clk 0:02:56]}  Bg4 {[%clk 0:02:59]} 6. Be2 {[%clk 0:02:47]}  Bxf3 {[%clk 0:02:55]} 7. Bxf3 {[%clk 0:02:46]}  e5 {[%clk 0:02:56]} 8. fxe5 {[%clk 0:02:40]}  dxe5 {[%clk 0:02:56]} 9. d5 {[%clk 0:02:39]}  Bc5 {[%clk 0:02:52]} 10. dxc6 {[%clk 0:02:34]}  Nxc6 {[%clk 0:02:51]} 11. Nd5 {[%clk 0:02:33]}  Nxd5 {[%clk 0:02:51]} 12. Qxd5 {[%clk 0:02:32]}  Rd8 {[%clk 0:02:48]} 13. Qb3 {[%clk 0:02:31]}  O-O {[%clk 0:02:05]} 14. Qxb6 {[%clk 0:02:29]}  Bxb6 {[%clk 0:02:06]} 15. c3 {[%clk 0:02:29]}  f5 {[%clk 0:01:58]} 16. Bg5 {[%clk 0:02:26]}  Rde8 {[%clk 0:01:48]} 17. Rd1 {[%clk 0:02:21]}  h6 {[%clk 0:01:47]} 18. Bh4 {[%clk 0:02:03]}  g5 {[%clk 0:01:47]} 19. Bg3 {[%clk 0:01:56]}  g4 {[%clk 0:01:43]} 20. Be2 {[%clk 0:01:52]}  f4 {[%clk 0:01:40]} 21. Bf2 {[%clk 0:01:50]}  f3 {[%clk 0:01:34]} 22. gxf3 {[%clk 0:01:45]}  gxf3 {[%clk 0:01:32]} 23. Bc4+ {[%clk 0:01:31]}  Kh7 {[%clk 0:01:32]} 24. Bxb6 {[%clk 0:01:29]}  axb6 {[%clk 0:01:33]} 25. Rd7+ {[%clk 0:01:26]}  Re7 {[%clk 0:01:33]} 26. Rxe7+ {[%clk 0:01:25]}  Nxe7 {[%clk 0:01:34]} 27. Kf2 {[%clk 0:01:25]}  Ng6 {[%clk 0:01:34]} 28. Rd1 {[%clk 0:01:19]}  h5 {[%clk 0:01:19]} 29. Rd7+ {[%clk 0:01:17]}  Kh6 {[%clk 0:01:19]} 30. Rxb7 {[%clk 0:01:15]}  Nh4 {[%clk 0:01:08]} 31. Rxb6+ {[%clk 0:01:13]}  Kg5 {[%clk 0:01:09]} 32. a4 {[%clk 0:01:07]}  Kf4 {[%clk 0:01:03]} 33. a5 {[%clk 0:01:04]}  Ng2 {[%clk 0:01:03]} 34. a6 {[%clk 0:01:01]}  Ne3 {[%clk 0:01:04]} 35. Bd5 {[%clk 0:00:58]}  Ng4+ {[%clk 0:01:01]} 36. Kf1 {[%clk 0:00:55]}  Nxh2+ {[%clk 0:01:00]} 37. Kf2 {[%clk 0:00:53]}  Ng4+ {[%clk 0:01:01]} 38. Kf1 {[%clk 0:00:53]}  Ke3 {[%clk 0:00:59]} 39. Bc4 {[%clk 0:00:43]}  Rd8 {[%clk 0:00:53]} 40. Ke1 {[%clk 0:00:36]}  Nh2 {[%clk 0:00:47]} 41. Rf6 {[%clk 0:00:34]}  Ng4 {[%clk 0:00:24]} 42. Rf7 {[%clk 0:00:31]}  h4 {[%clk 0:00:22]} 43. a7 {[%clk 0:00:29]}  h3 {[%clk 0:00:19]} 44. Rd7 {[%clk 0:00:07]}  Rxd7 {[%clk 0:00:18]} 45. a8=Q {[%clk 0:00:07]}  f2+ {[%clk 0:00:18]} 46. Kf1 {[%clk 0:00:07]}  Rd1# {[%clk 0:00:19]} 0-1


[Site "https://www.chess.com"]

[Event "Titled Tuesday Blitz October 25 Late 2022"]
[White "Liu, Kelsey"]
[Black "Ozates, Tuna"]
[WhiteFideId "30944481"]
[BlackFideId "6354521"]
[WhiteElo "2299"]
[BlackElo "2151"]
[Result "0-1"]
[Round "02"]
[TimeControl "180+1"]
[Date "2022.10.26"]
[WhiteClock "0:00:03"]
[BlackClock "0:01:37"]

1. e4 {[%clk 0:03:00]}  Nf6 {[%clk 0:02:54]} 2. e5 {[%clk 0:02:58]}  Nd5 {[%clk 0:02:54]} 3. d4 {[%clk 0:02:58]}  d6 {[%clk 0:02:55]} 4. Nf3 {[%clk 0:02:58]}  dxe5 {[%clk 0:02:55]} 5. c4 {[%clk 0:02:38]}  e4 {[%clk 0:02:52]} 6. cxd5 {[%clk 0:02:20]}  exf3 {[%clk 0:02:50]} 7. Qxf3 {[%clk 0:02:21]}  Nd7 {[%clk 0:02:49]} 8. Nc3 {[%clk 0:02:21]}  g6 {[%clk 0:02:47]} 9. Bc4 {[%clk 0:02:21]}  Bg7 {[%clk 0:02:47]} 10. O-O {[%clk 0:02:10]}  O-O {[%clk 0:02:46]} 11. Be3 {[%clk 0:02:02]}  a6 {[%clk 0:02:38]} 12. a4 {[%clk 0:02:00]}  Rb8 {[%clk 0:02:30]} 13. Rfe1 {[%clk 0:01:57]}  b6 {[%clk 0:02:29]} 14. Bg5 {[%clk 0:01:56]}  Nf6 {[%clk 0:02:27]} 15. Ne4 {[%clk 0:01:33]}  Bb7 {[%clk 0:02:23]} 16. Nxf6+ {[%clk 0:01:22]}  exf6 {[%clk 0:02:24]} 17. Bf4 {[%clk 0:01:21]}  Qd7 {[%clk 0:02:21]} 18. Qg3 {[%clk 0:01:07]}  Rbc8 {[%clk 0:02:19]} 19. Re3 {[%clk 0:00:59]}  b5 {[%clk 0:02:18]} 20. axb5 {[%clk 0:00:58]}  axb5 {[%clk 0:02:19]} 21. Bd3 {[%clk 0:00:39]}  Bxd5 {[%clk 0:02:14]} 22. Rae1 {[%clk 0:00:38]}  Rfe8 {[%clk 0:02:08]} 23. h4 {[%clk 0:00:32]}  c6 {[%clk 0:02:02]} 24. h5 {[%clk 0:00:28]}  f5 {[%clk 0:02:02]} 25. Be5 {[%clk 0:00:24]}  f6 {[%clk 0:01:51]} 26. hxg6 {[%clk 0:00:12]}  fxe5 {[%clk 0:01:48]} 27. Qh3 {[%clk 0:00:09]}  hxg6 {[%clk 0:01:45]} 28. Rg3 {[%clk 0:00:09]}  e4 {[%clk 0:01:43]} 29. Be2 {[%clk 0:00:07]}  Qd6 {[%clk 0:01:37]} 30. Rg5 {[%clk 0:00:03]} 0-1


[Site "https://www.chess.com"]